[Event "*** SCC Grand Prix: Titled Tuesday Blitz"]
[Site "Chess.com"]
[Date "2020.09.29"]
[Round "1"]
[White "checkmatequen"]
[Black "PLAYER_2006_M"]
[Result "1-0"]
[WhiteElo "2299"]
[BlackElo "2560"]
[TimeControl "180+1"]
[EndTime "10:07:33 PDT"]
[Termination "checkmatequen won by checkmate"]

1. e4 {[%clk 0:03:00.9]} 1... e5 {[%clk 0:02:59.8]} 2. Nf3 {[%clk 0:02:58.8]}
2... Nc6 {[%clk 0:02:59.9]} 3. Bb5 {[%clk 0:02:57.7]} 3... Nf6 {[%clk
0:02:58.5]} 4. d3 {[%clk 0:02:55.5]} 4... Bc5 {[%clk 0:02:55.4]} 5. O-O {[%clk
0:02:53]} 5... d6 {[%clk 0:02:51.6]} 6. c3 {[%clk 0:02:52]} 6... O-O {[%clk
0:02:50.3]} 7. Nbd2 {[%clk 0:02:47.6]} 7... Bb6 {[%clk 0:02:48]} 8. a4 {[%clk
0:02:44.8]} 8... a6 {[%clk 0:02:43.3]} 9. Bc4 {[%clk 0:02:44.1]} 9... Ne7 {[%clk
0:02:41.4]} 10. Re1 {[%clk 0:02:41.9]} 10... Ng4 {[%clk 0:02:23.4]} 11. Re2
{[%clk 0:02:39.1]} 11... Kh8 {[%clk 0:02:22.6]} 12. h3 {[%clk 0:02:37.1]} 12...
Nh6 {[%clk 0:02:21.9]} 13. Nf1 {[%clk 0:02:35.5]} 13... f5 {[%clk 0:02:21.6]}
14. Bg5 {[%clk 0:02:26.7]} 14... fxe4 {[%clk 0:02:10.3]} 15. dxe4 {[%clk
0:02:24.4]} 15... Qe8 {[%clk 0:02:09.4]} 16. N1h2 {[%clk 0:02:19.6]} 16... Ng6
{[%clk 0:02:04.8]} 17. Qd2 {[%clk 0:02:10.1]} 17... Nf4 {[%clk 0:02:01.8]} 18.
Bxf4 {[%clk 0:02:09.1]} 18... Rxf4 {[%clk 0:02:02.7]} 19. a5 {[%clk 0:01:54.6]}
19... Ba7 {[%clk 0:02:01.7]} 20. Rd1 {[%clk 0:01:32.3]} 20... Qg6 {[%clk
0:01:56]} 21. Kh1 {[%clk 0:01:26.7]} 21... Rxe4 {[%clk 0:01:32.2]} 22. Nxe5
{[%clk 0:01:08.3]} 22... Qf5 {[%clk 0:01:01.4]} 23. Rxe4 {[%clk 0:00:59.8]}
23... Qxe4 {[%clk 0:01:00.2]} 24. Re1 {[%clk 0:00:59.6]} 24... Qxe1+ {[%clk
0:00:19.9]} 25. Qxe1 {[%clk 0:00:58.5]} 25... dxe5 {[%clk 0:00:20.2]} 26. Qxe5
{[%clk 0:00:58.5]} 26... Bf5 {[%clk 0:00:19.4]} 27. Qxc7 {[%clk 0:00:54.4]}
27... Bxf2 {[%clk 0:00:18.5]} 28. Qxb7 {[%clk 0:00:51.3]} 28... Re8 {[%clk
0:00:17.6]} 29. Nf3 {[%clk 0:00:51.3]} 29... Be4 {[%clk 0:00:09]} 30. Qxa6
{[%clk 0:00:48.9]} 30... Nf5 {[%clk 0:00:08.3]} 31. Qb5 {[%clk 0:00:42.4]} 31...
Ng3+ {[%clk 0:00:08.3]} 32. Kh2 {[%clk 0:00:42.4]} 32... Rf8 {[%clk 0:00:07.3]}
33. Be2 {[%clk 0:00:35.4]} 33... h5 {[%clk 0:00:05.4]} 34. a6 {[%clk 0:00:33.4]}
34... Rf5 {[%clk 0:00:05.6]} 35. Qb8+ {[%clk 0:00:31.8]} 35... Kh7 {[%clk
0:00:05.6]} 36. a7 {[%clk 0:00:29.3]} 36... Nxe2 {[%clk 0:00:04]} 37. a8=Q
{[%clk 0:00:17.4]} 37... Bxa8 {[%clk 0:00:04.9]} 38. Qxa8 {[%clk 0:00:17.3]}
38... Bg3+ {[%clk 0:00:05.6]} 39. Kh1 {[%clk 0:00:17.3]} 39... Nf4 {[%clk
0:00:06.4]} 40. Qe4 {[%clk 0:00:16.3]} 40... g6 {[%clk 0:00:06.3]} 41. Qe7+
{[%clk 0:00:16.2]} 41... Kh6 {[%clk 0:00:06.5]} 42. Qe8 {[%clk 0:00:14]} 42...
Rd5 {[%clk 0:00:07.4]} 43. Qh8# {[%clk 0:00:13.6]} 1-0

[Event "*** SCC Grand Prix: Titled Tuesday Blitz"]
[Site "Chess.com"]
[Date "2020.09.29"]
[Round "1"]
[White "IsaacWiebe"]
[Black "nocnypako"]
[Result "0-1"]
[WhiteElo "2244"]
[BlackElo "2569"]
[TimeControl "180+1"]
[EndTime "10:07:33 PDT"]
[Termination "nocnypako won on time"]

1. e4 {[%clk 0:03:00.8]} 1... c5 {[%clk 0:02:59.1]} 2. Nc3 {[%clk 0:03:00.7]}
2... d6 {[%clk 0:02:59.3]} 3. Nf3 {[%clk 0:03:00.6]} 3... Nf6 {[%clk 0:02:58.2]}
4. g3 {[%clk 0:02:58.3]} 4... Nc6 {[%clk 0:02:55]} 5. Bg2 {[%clk 0:02:58.3]}
5... Bg4 {[%clk 0:02:55.2]} 6. h3 {[%clk 0:02:57.7]} 6... Bxf3 {[%clk
0:02:55.3]} 7. Bxf3 {[%clk 0:02:57.9]} 7... g6 {[%clk 0:02:56]} 8. O-O {[%clk
0:02:55]} 8... Bg7 {[%clk 0:02:56.4]} 9. Nd5 {[%clk 0:02:47.7]} 9... O-O {[%clk
0:02:50.5]} 10. Nxf6+ {[%clk 0:02:46.2]} 10... Bxf6 {[%clk 0:02:51.4]} 11. c3
{[%clk 0:02:46]} 11... Rb8 {[%clk 0:02:48.1]} 12. d3 {[%clk 0:02:34.4]} 12... b5
{[%clk 0:02:47.4]} 13. Be3 {[%clk 0:02:32.4]} 13... Qb6 {[%clk 0:02:34.9]} 14.
Qd2 {[%clk 0:02:26.2]} 14... b4 {[%clk 0:02:30.7]} 15. Rac1 {[%clk 0:01:59.3]}
15... Qa5 {[%clk 0:02:24.8]} 16. d4 {[%clk 0:01:39.2]} 16... bxc3 {[%clk
0:02:24.1]} 17. bxc3 {[%clk 0:01:39.3]} 17... cxd4 {[%clk 0:02:24.3]} 18. cxd4
{[%clk 0:01:39.4]} 18... Qxd2 {[%clk 0:02:24.4]} 19. Bxd2 {[%clk 0:01:38]} 19...
Nxd4 {[%clk 0:02:25]} 20. Kg2 {[%clk 0:01:32.9]} 20... Rb2 {[%clk 0:02:16.6]}
21. Bh6 {[%clk 0:01:24]} 21... Rd8 {[%clk 0:02:09.5]} 22. a4 {[%clk 0:01:14.7]}
22... Nxf3 {[%clk 0:01:56.9]} 23. Kxf3 {[%clk 0:01:13.4]} 23... Rb3+ {[%clk
0:01:57.6]} 24. Kg2 {[%clk 0:01:12.5]} 24... Rb4 {[%clk 0:01:57.8]} 25. Rc7
{[%clk 0:01:01.4]} 25... Rxa4 {[%clk 0:01:57.3]} 26. Rfc1 {[%clk 0:00:43.2]}
26... Rb4 {[%clk 0:01:52.8]} 27. Rxa7 {[%clk 0:00:33.7]} 27... Rxe4 {[%clk
0:01:52.7]} 28. Rac7 {[%clk 0:00:31.3]} 28... Rb4 {[%clk 0:01:37]} 29. R1c2
{[%clk 0:00:18.1]} 29... Rbb8 {[%clk 0:01:34.1]} 30. h4 {[%clk 0:00:17.1]} 30...
Re8 {[%clk 0:01:33.9]} 31. Rd7 {[%clk 0:00:16.3]} 31... Rbd8 {[%clk 0:01:32.4]}
32. Rb7 {[%clk 0:00:13.5]} 32... Bg7 {[%clk 0:01:31.2]} 33. Bg5 {[%clk
0:00:12.6]} 33... f6 {[%clk 0:01:30]} 34. Bf4 {[%clk 0:00:12.6]} 34... h6 {[%clk
0:01:19.1]} 35. Rcc7 {[%clk 0:00:12]} 35... Kf7 {[%clk 0:01:17.6]} 36. Be3
{[%clk 0:00:10.5]} 36... g5 {[%clk 0:01:15.2]} 37. hxg5 {[%clk 0:00:09.9]} 37...
hxg5 {[%clk 0:01:16.1]} 38. f4 {[%clk 0:00:08.7]} 38... gxf4 {[%clk 0:01:15]}
39. gxf4 {[%clk 0:00:09.6]} 39... f5 {[%clk 0:01:13.3]} 40. Bb6 {[%clk
0:00:09.1]} 40... Bf6 {[%clk 0:01:05.8]} 41. Kf3 {[%clk 0:00:08.9]} 41... Rb8
{[%clk 0:01:04]} 42. Be3 {[%clk 0:00:02.7]} 42... Rxb7 {[%clk 0:01:03.5]} 43.
Rxb7 {[%clk 0:00:03.6]} 43... Ra8 {[%clk 0:00:59.4]} 44. Rc7 {[%clk 0:00:03.6]}
44... Ra3 {[%clk 0:00:56.9]} 45. Ke2 {[%clk 0:00:04.1]} 45... Kg6 {[%clk
0:00:54.2]} 46. Rb7 {[%clk 0:00:04.6]} 46... Ra6 {[%clk 0:00:49.6]} 47. Rb4
{[%clk 0:00:04.9]} 47... e5 {[%clk 0:00:48.7]} 48. fxe5 {[%clk 0:00:04.5]} 48...
dxe5 {[%clk 0:00:49.6]} 49. Bd2 {[%clk 0:00:04.6]} 49... Bg5 {[%clk 0:00:44.8]}
50. Bc3 {[%clk 0:00:03.5]} 50... e4 {[%clk 0:00:44.6]} 51. Rb2 {[%clk
0:00:02.8]} 51... f4 {[%clk 0:00:42.4]} 52. Rb5 {[%clk 0:00:02.9]} 52... Ra2+
{[%clk 0:00:38.4]} 53. Bb2 {[%clk 0:00:02]} 53... Bf6 {[%clk 0:00:37.5]} 0-1

[Event "*** SCC Grand Prix: Titled Tuesday Blitz"]
[Site "Chess.com"]
[Date "2020.09.29"]
[Round "1"]
[White "kobemagic"]
[Black "Bulldog167"]
[Result "0-1"]
[WhiteElo "2404"]
[BlackElo "2803"]
[TimeControl "180+1"]
[EndTime "10:07:35 PDT"]
[Termination "Bulldog167 won on time"]

1. c4 {[%clk 0:03:00.9]} 1... e6 {[%clk 0:02:58.1]} 2. g3 {[%clk 0:03:01.3]}
2... Nf6 {[%clk 0:02:57.1]} 3. Bg2 {[%clk 0:03:01.6]} 3... d5 {[%clk 0:02:57.7]}
4. Nf3 {[%clk 0:03:01.9]} 4... Be7 {[%clk 0:02:57.8]} 5. O-O {[%clk 0:03:01.9]}
5... O-O {[%clk 0:02:58.5]} 6. b3 {[%clk 0:03:01.7]} 6... d4 {[%clk 0:02:55.1]}
7. e3 {[%clk 0:02:58.1]} 7... c5 {[%clk 0:02:55.5]} 8. exd4 {[%clk 0:02:57.9]}
8... cxd4 {[%clk 0:02:56.4]} 9. d3 {[%clk 0:02:58.6]} 9... Nc6 {[%clk
0:02:56.3]} 10. Re1 {[%clk 0:02:56.1]} 10... Nd7 {[%clk 0:02:50.5]} 11. Na3
{[%clk 0:02:50.8]} 11... Nc5 {[%clk 0:02:48]} 12. Nc2 {[%clk 0:02:51]} 12... a5
{[%clk 0:02:47.5]} 13. Bb2 {[%clk 0:02:41]} 13... Bf6 {[%clk 0:02:47.2]} 14. Ba3
{[%clk 0:02:35.4]} 14... Qb6 {[%clk 0:02:43.2]} 15. Bxc5 {[%clk 0:02:19.2]}
15... Qxc5 {[%clk 0:02:43.1]} 16. Nd2 {[%clk 0:02:20.1]} 16... Qb6 {[%clk
0:02:33.7]} 17. Ne4 {[%clk 0:02:16.4]} 17... Be7 {[%clk 0:02:34.1]} 18. a3
{[%clk 0:02:12.7]} 18... e5 {[%clk 0:02:00.5]} 19. Rb1 {[%clk 0:02:08.6]} 19...
f5 {[%clk 0:01:04.1]} 20. Nd2 {[%clk 0:02:02.2]} 20... Bf6 {[%clk 0:01:04.3]}
21. b4 {[%clk 0:01:59]} 21... axb4 {[%clk 0:01:05.2]} 22. axb4 {[%clk
0:01:59.3]} 22... Kh8 {[%clk 0:01:03.2]} 23. b5 {[%clk 0:01:44.6]} 23... Nd8
{[%clk 0:00:58.7]} 24. Nb4 {[%clk 0:01:44.8]} 24... Ne6 {[%clk 0:00:51.8]} 25.
Nd5 {[%clk 0:01:44.4]} 25... Qd8 {[%clk 0:00:52.5]} 26. Nxf6 {[%clk 0:01:35.1]}
26... Qxf6 {[%clk 0:00:53.4]} 27. Qe2 {[%clk 0:01:35.5]} 27... Ra2 {[%clk
0:00:53.5]} 28. Rbd1 {[%clk 0:01:23.6]} 28... Nc5 {[%clk 0:00:45.6]} 29. Qxe5
{[%clk 0:01:10.3]} 29... Qxe5 {[%clk 0:00:46.5]} 30. Rxe5 {[%clk 0:01:09.3]}
30... Nxd3 {[%clk 0:00:46.8]} 31. Re7 {[%clk 0:01:02.5]} 31... f4 {[%clk
0:00:41.9]} 32. Bxb7 {[%clk 0:00:38]} 32... fxg3 {[%clk 0:00:36.7]} 33. fxg3
{[%clk 0:00:21.3]} 33... Bxb7 {[%clk 0:00:30.7]} 34. Rxb7 {[%clk 0:00:19.4]}
34... Nf2 {[%clk 0:00:31.3]} 35. Rf1 {[%clk 0:00:15.8]} 35... Rxd2 {[%clk
0:00:31.4]} 36. Rxf2 {[%clk 0:00:06.3]} 36... Rdxf2 {[%clk 0:00:29.7]} 37. Rd7
{[%clk 0:00:05.2]} 37... Rd2 {[%clk 0:00:25.1]} 38. b6 {[%clk 0:00:05.1]} 38...
Ra8 {[%clk 0:00:15.3]} 39. Rf7 {[%clk 0:00:01.2]} 39... Ra1+ {[%clk 0:00:14.8]}
40. Rf1 {[%clk 0:00:01.8]} 40... Rxf1+ {[%clk 0:00:15.3]} 41. Kxf1 {[%clk
0:00:02.7]} 41... Rb2 {[%clk 0:00:15.7]} 42. c5 {[%clk 0:00:02.7]} 42... Rb5
{[%clk 0:00:16.3]} 0-1

[Event "*** SCC Grand Prix: Titled Tuesday Blitz"]
[Site "Chess.com"]
[Date "2020.09.29"]
[Round "1"]
[White "tteshan"]
[Black "belisarius64"]
[Result "0-1"]
[WhiteElo "2350"]
[BlackElo "2686"]
[TimeControl "180+1"]
[EndTime "10:07:36 PDT"]
[Termination "belisarius64 won by resignation"]

1. e4 {[%clk 0:03:00.9]} 1... c5 {[%clk 0:02:56.3]} 2. Nf3 {[%clk 0:03:00.7]}
2... d6 {[%clk 0:02:56.2]} 3. d4 {[%clk 0:03:00.7]} 3... cxd4 {[%clk 0:02:57.1]}
4. Nxd4 {[%clk 0:03:01.3]} 4... Nf6 {[%clk 0:02:49]} 5. f3 {[%clk 0:03:01.4]}
5... e6 {[%clk 0:02:47.3]} 6. c4 {[%clk 0:03:01]} 6... Nc6 {[%clk 0:02:35.1]} 7.
Be3 {[%clk 0:03:00.3]} 7... Be7 {[%clk 0:02:35.7]} 8. Nc3 {[%clk 0:02:59.5]}
8... O-O {[%clk 0:02:36.1]} 9. Be2 {[%clk 0:02:59.7]} 9... d5 {[%clk 0:02:36.3]}
10. exd5 {[%clk 0:02:55.5]} 10... exd5 {[%clk 0:02:36.3]} 11. Nxc6 {[%clk
0:02:52]} 11... bxc6 {[%clk 0:02:37.2]} 12. O-O {[%clk 0:02:51.3]} 12... Be6
{[%clk 0:02:31.3]} 13. Qa4 {[%clk 0:02:46.9]} 13... d4 {[%clk 0:02:23.7]} 14.
Rad1 {[%clk 0:02:41.7]} 14... c5 {[%clk 0:02:19]} 15. Nb5 {[%clk 0:02:12.6]}
15... Bd7 {[%clk 0:02:13.8]} 16. Bf4 {[%clk 0:01:28.4]} 16... a6 {[%clk
0:02:11.3]} 17. Qc2 {[%clk 0:01:28.5]} 17... axb5 {[%clk 0:02:11.1]} 18. cxb5
{[%clk 0:01:29.4]} 18... Rxa2 {[%clk 0:01:54.5]} 19. Bc4 {[%clk 0:01:21.5]}
19... Ra8 {[%clk 0:01:51.9]} 20. Rfe1 {[%clk 0:01:20]} 20... Be6 {[%clk
0:01:34]} 21. Bxe6 {[%clk 0:01:08.6]} 21... fxe6 {[%clk 0:01:34.9]} 22. Rxe6
{[%clk 0:01:09.1]} 22... Nd5 {[%clk 0:01:32.9]} 23. Bg3 {[%clk 0:00:52]} 23...
Qd7 {[%clk 0:01:16.5]} 24. Qe4 {[%clk 0:00:51.2]} 24... Bf6 {[%clk 0:01:08]} 25.
Rd6 {[%clk 0:00:48.9]} 25... Qxb5 {[%clk 0:01:05.1]} 26. Qxd5+ {[%clk
0:00:47.3]} 26... Kh8 {[%clk 0:01:05.3]} 27. h4 {[%clk 0:00:38.3]} 27... Qxb2
{[%clk 0:00:54.3]} 28. h5 {[%clk 0:00:38.3]} 28... Ra2 {[%clk 0:00:43]} 29. f4
{[%clk 0:00:32.8]} 29... Ra3 {[%clk 0:00:32]} 30. Bf2 {[%clk 0:00:27]} 30... Ra1
{[%clk 0:00:19.4]} 31. Rxa1 {[%clk 0:00:23.4]} 31... Qxa1+ {[%clk 0:00:20.3]}
32. Kh2 {[%clk 0:00:24]} 32... Qf1 {[%clk 0:00:20.4]} 33. Bg3 {[%clk 0:00:20.8]}
33... c4 {[%clk 0:00:17.8]} 34. h6 {[%clk 0:00:20]} 34... c3 {[%clk 0:00:15.6]}
35. hxg7+ {[%clk 0:00:18.2]} 35... Bxg7 {[%clk 0:00:15.7]} 36. Rd8 {[%clk
0:00:15.1]} 36... h6 {[%clk 0:00:02.7]} 37. Rxf8+ {[%clk 0:00:09.7]} 37... Bxf8
{[%clk 0:00:03.6]} 38. Qxd4+ {[%clk 0:00:10]} 38... Bg7 {[%clk 0:00:04]} 39.
Qd8+ {[%clk 0:00:08.6]} 39... Kh7 {[%clk 0:00:04.2]} 40. Qc8 {[%clk 0:00:08.7]}
40... Qb1 {[%clk 0:00:03.6]} 41. Qxc3 {[%clk 0:00:07.6]} 41... Bxc3 {[%clk
0:00:03]} 0-1

[Event "*** SCC Grand Prix: Titled Tuesday Blitz"]
[Site "Chess.com"]
[Date "2020.09.29"]
[Round "1"]
[White "MateusViageiro"]
[Black "Maghalashvili"]
[Result "0-1"]
[WhiteElo "2354"]
[BlackElo "2696"]
[TimeControl "180+1"]
[EndTime "10:07:37 PDT"]
[Termination "Maghalashvili won by resignation"]

1. e4 {[%clk 0:03:00.7]} 1... c5 {[%clk 0:02:59.9]} 2. Nf3 {[%clk 0:03:00.1]}
2... d6 {[%clk 0:03:00.6]} 3. d4 {[%clk 0:03:00.6]} 3... cxd4 {[%clk 0:03:01.5]}
4. Nxd4 {[%clk 0:03:01.3]} 4... Nf6 {[%clk 0:03:02.1]} 5. Nc3 {[%clk 0:03:01.9]}
5... a6 {[%clk 0:03:03]} 6. f3 {[%clk 0:03:02.2]} 6... e5 {[%clk 0:03:03.2]} 7.
Nb3 {[%clk 0:03:01.8]} 7... Be6 {[%clk 0:03:03.8]} 8. Be3 {[%clk 0:03:02.4]}
8... h5 {[%clk 0:03:04.2]} 9. Qd2 {[%clk 0:03:02.6]} 9... Nbd7 {[%clk
0:03:05.1]} 10. O-O-O {[%clk 0:03:02.8]} 10... Rc8 {[%clk 0:03:05.3]} 11. Kb1
{[%clk 0:03:03]} 11... Nb6 {[%clk 0:03:04.2]} 12. Bxb6 {[%clk 0:03:00.3]} 12...
Qxb6 {[%clk 0:03:04.2]} 13. Be2 {[%clk 0:02:46.9]} 13... Be7 {[%clk 0:02:57.7]}
14. Rhg1 {[%clk 0:02:44.1]} 14... Qc7 {[%clk 0:02:50.8]} 15. h3 {[%clk
0:02:25.9]} 15... h4 {[%clk 0:02:49.6]} 16. f4 {[%clk 0:02:25.5]} 16... exf4
{[%clk 0:02:44]} 17. Qxf4 {[%clk 0:02:25]} 17... b5 {[%clk 0:02:30.6]} 18. Bd3
{[%clk 0:01:59.2]} 18... b4 {[%clk 0:02:20.7]} 19. Ne2 {[%clk 0:01:58.5]} 19...
Nh5 {[%clk 0:01:56.9]} 20. Qf2 {[%clk 0:01:50.2]} 20... Bc4 {[%clk 0:01:52.3]}
21. Rgf1 {[%clk 0:01:42.6]} 21... O-O {[%clk 0:01:48.5]} 22. Ned4 {[%clk
0:01:39.6]} 22... Ng3 {[%clk 0:01:44.8]} 23. Rfe1 {[%clk 0:01:36.6]} 23... Bf6
{[%clk 0:01:42.1]} 24. Nf5 {[%clk 0:01:25.3]} 24... Nxf5 {[%clk 0:01:41.4]} 25.
exf5 {[%clk 0:01:25.3]} 25... d5 {[%clk 0:01:26.8]} 26. Bf1 {[%clk 0:00:48.5]}
26... a5 {[%clk 0:01:24.1]} 27. Bxc4 {[%clk 0:00:46.6]} 27... dxc4 {[%clk
0:01:20.5]} 28. Nd4 {[%clk 0:00:46.6]} 28... a4 {[%clk 0:01:19.2]} 29. Nb5
{[%clk 0:00:42]} 29... Qa5 {[%clk 0:01:16.3]} 30. Nd6 {[%clk 0:00:39.6]} 30...
Rc6 {[%clk 0:01:05]} 31. Ne4 {[%clk 0:00:32.1]} 31... Qe5 {[%clk 0:01:04.5]} 32.
Nxf6+ {[%clk 0:00:31.1]} 32... Qxf6 {[%clk 0:01:05.4]} 33. Qd4 {[%clk
0:00:28.4]} 33... Qxf5 {[%clk 0:01:02.4]} 34. Qxh4 {[%clk 0:00:27.3]} 34... b3
{[%clk 0:01:00.1]} 35. Qe4 {[%clk 0:00:25.8]} 35... Qb5 {[%clk 0:00:56.4]} 36.
cxb3 {[%clk 0:00:23.9]} 36... axb3 {[%clk 0:00:54.2]} 37. a3 {[%clk 0:00:24.3]}
37... c3 {[%clk 0:00:53.7]} 38. bxc3 {[%clk 0:00:20.5]} 38... Rxc3 {[%clk
0:00:51.5]} 39. Qb4 {[%clk 0:00:20.4]} 39... Qf5+ {[%clk 0:00:48.6]} 40. Ka1
{[%clk 0:00:17.4]} 40... Qf6 {[%clk 0:00:37.3]} 41. Qd4 {[%clk 0:00:12.1]} 41...
Rc1+ {[%clk 0:00:33.4]} 42. Kb2 {[%clk 0:00:07.8]} 42... Qxd4+ {[%clk
0:00:31.4]} 43. Rxd4 {[%clk 0:00:08.7]} 43... Rxe1 {[%clk 0:00:31.9]} 44. Kxb3
{[%clk 0:00:09]} 44... Re2 {[%clk 0:00:32]} 45. g4 {[%clk 0:00:08.4]} 45... Re3+
{[%clk 0:00:31.9]} 0-1

[Event "*** SCC Grand Prix: Titled Tuesday Blitz"]
[Site "Chess.com"]
[Date "2020.09.29"]
[Round "1"]
[White "Sethu0025"]
[Black "DishonorOnYourCow"]
[Result "1-0"]
[WhiteElo "2767"]
[BlackElo "2389"]
[TimeControl "180+1"]
[EndTime "10:07:39 PDT"]
[Termination "Sethu0025 won on time"]

1. d4 {[%clk 0:03:00.9]} 1... Nf6 {[%clk 0:02:52.7]} 2. c4 {[%clk 0:03:00.9]}
2... g6 {[%clk 0:02:47.6]} 3. Nc3 {[%clk 0:03:00.6]} 3... d5 {[%clk 0:02:46]} 4.
cxd5 {[%clk 0:03:01.5]} 4... Nxd5 {[%clk 0:02:46.5]} 5. e4 {[%clk 0:03:02.3]}
5... Nxc3 {[%clk 0:02:47]} 6. bxc3 {[%clk 0:03:03]} 6... Bg7 {[%clk 0:02:47.9]}
7. Be3 {[%clk 0:03:03.5]} 7... c5 {[%clk 0:02:47.9]} 8. Nf3 {[%clk 0:03:02.6]}
8... Qa5 {[%clk 0:02:45.3]} 9. Qd2 {[%clk 0:03:02.9]} 9... O-O {[%clk
0:02:41.1]} 10. Rb1 {[%clk 0:03:02.5]} 10... Rd8 {[%clk 0:02:33.4]} 11. Rb5
{[%clk 0:02:50.1]} 11... Qa3 {[%clk 0:02:16.2]} 12. Rxc5 {[%clk 0:02:42.1]}
12... Qxc5 {[%clk 0:02:12.1]} 13. dxc5 {[%clk 0:02:40.6]} 13... Rxd2 {[%clk
0:02:13]} 14. Kxd2 {[%clk 0:02:41]} 14... Be6 {[%clk 0:02:12.4]} 15. Nd4 {[%clk
0:02:07.7]} 15... Bxa2 {[%clk 0:01:47.7]} 16. Bd3 {[%clk 0:02:05.3]} 16... e5
{[%clk 0:01:26.7]} 17. Nb5 {[%clk 0:02:04.9]} 17... Nd7 {[%clk 0:01:22.5]} 18.
Ra1 {[%clk 0:02:01.1]} 18... Be6 {[%clk 0:01:18.1]} 19. Nc7 {[%clk 0:01:56.1]}
19... Rc8 {[%clk 0:01:00.2]} 20. Nxe6 {[%clk 0:01:56.1]} 20... fxe6 {[%clk
0:01:01.1]} 21. Rxa7 {[%clk 0:01:56.5]} 21... Bf8 {[%clk 0:00:44]} 22. Bc4
{[%clk 0:01:39.6]} 22... Rc7 {[%clk 0:00:13.9]} 23. Bxe6+ {[%clk 0:01:36.5]}
23... Kg7 {[%clk 0:00:12.7]} 24. Bxd7 {[%clk 0:01:28.5]} 24... Rxd7+ {[%clk
0:00:13.6]} 25. Kc2 {[%clk 0:01:27.8]} 25... Rc7 {[%clk 0:00:13.4]} 26. Kd3
{[%clk 0:01:27.8]} 26... Kf6 {[%clk 0:00:12.8]} 27. Ra5 {[%clk 0:01:14.7]} 27...
h5 {[%clk 0:00:12.3]} 28. Rb5 {[%clk 0:01:14.7]} 28... Ke6 {[%clk 0:00:11.7]}
29. Kc4 {[%clk 0:01:13.6]} 29... Be7 {[%clk 0:00:07.7]} 30. Rb6+ {[%clk
0:01:13.2]} 30... Kf7 {[%clk 0:00:08]} 31. Kd5 {[%clk 0:01:10.1]} 31... Bf6
{[%clk 0:00:06.3]} 32. f3 {[%clk 0:01:04.6]} 32... Bd8 {[%clk 0:00:05]} 33. Rb5
{[%clk 0:00:54.8]} 33... Rd7+ {[%clk 0:00:04.3]} 34. Kc4 {[%clk 0:00:51.8]}
34... Ke6 {[%clk 0:00:04.6]} 35. Rb6+ {[%clk 0:00:51.4]} 35... Bxb6 {[%clk
0:00:04.3]} 36. cxb6 {[%clk 0:00:51.6]} 36... Kd6 {[%clk 0:00:04.8]} 37. Kb5
{[%clk 0:00:51]} 37... Rd8 {[%clk 0:00:04.4]} 38. c4 {[%clk 0:00:51.2]} 38...
Rc8 {[%clk 0:00:04.7]} 39. c5+ {[%clk 0:00:51.6]} 39... Ke6 {[%clk 0:00:05.2]}
40. Bd2 {[%clk 0:00:49.7]} 40... Rc6 {[%clk 0:00:05.3]} 41. Bc3 {[%clk
0:00:48.9]} 41... Rc8 {[%clk 0:00:05.5]} 42. Bd2 {[%clk 0:00:41.4]} 42... Rc6
{[%clk 0:00:05.9]} 43. Be3 {[%clk 0:00:41.7]} 43... Rc8 {[%clk 0:00:06.1]} 44.
g3 {[%clk 0:00:41.7]} 44... Rc6 {[%clk 0:00:06.4]} 45. f4 {[%clk 0:00:42]} 45...
Rc8 {[%clk 0:00:06.6]} 46. Kc4 {[%clk 0:00:42.2]} 46... Rc6 {[%clk 0:00:06.5]}
47. Kd3 {[%clk 0:00:42.5]} 47... Rc8 {[%clk 0:00:06.2]} 48. fxe5 {[%clk
0:00:42.1]} 48... Kxe5 {[%clk 0:00:06.3]} 49. Bf4+ {[%clk 0:00:41.7]} 49... Ke6
{[%clk 0:00:06.7]} 50. Kd4 {[%clk 0:00:41.2]} 50... Ra8 {[%clk 0:00:06.8]} 51.
c6 {[%clk 0:00:38]} 51... bxc6 {[%clk 0:00:02.4]} 52. b7 {[%clk 0:00:37]} 52...
Ra4+ {[%clk 0:00:02.2]} 53. Kc5 {[%clk 0:00:35.4]} 53... Ra5+ {[%clk 0:00:01.4]}
54. Kxc6 {[%clk 0:00:35.7]} 54... Ra1 {[%clk 0:00:01.5]} 55. b8=Q {[%clk
0:00:34.6]} 1-0

[Event "*** SCC Grand Prix: Titled Tuesday Blitz"]
[Site "Chess.com"]
[Date "2020.09.29"]
[Round "1"]
[White "Nachsueb"]
[Black "Gerodot71"]
[Result "0-1"]
[WhiteElo "1983"]
[BlackElo "2469"]
[TimeControl "180+1"]
[EndTime "10:07:39 PDT"]
[Termination "Gerodot71 won by resignation"]

1. c4 {[%clk 0:03:00.9]} 1... e5 {[%clk 0:02:59]} 2. Nc3 {[%clk 0:03:01.1]} 2...
Nf6 {[%clk 0:02:59.2]} 3. g3 {[%clk 0:03:01.6]} 3... c6 {[%clk 0:02:58.3]} 4.
Bg2 {[%clk 0:03:02.1]} 4... d5 {[%clk 0:02:58.3]} 5. cxd5 {[%clk 0:03:01.9]}
5... cxd5 {[%clk 0:02:59.2]} 6. d4 {[%clk 0:03:00.6]} 6... e4 {[%clk 0:02:58.3]}
7. e3 {[%clk 0:02:53.2]} 7... Nc6 {[%clk 0:02:54.3]} 8. Nge2 {[%clk 0:02:53.1]}
8... Be7 {[%clk 0:02:53.5]} 9. O-O {[%clk 0:02:52.8]} 9... h5 {[%clk 0:02:53.6]}
10. f3 {[%clk 0:02:46.3]} 10... exf3 {[%clk 0:02:51.6]} 11. Bxf3 {[%clk
0:02:47.2]} 11... h4 {[%clk 0:02:50.1]} 12. e4 {[%clk 0:02:40.5]} 12... Be6
{[%clk 0:02:46.9]} 13. Bf4 {[%clk 0:02:24.8]} 13... Qd7 {[%clk 0:02:30.8]} 14.
exd5 {[%clk 0:02:17.6]} 14... Nxd5 {[%clk 0:02:31.7]} 15. Nxd5 {[%clk
0:02:13.4]} 15... Bxd5 {[%clk 0:02:32.6]} 16. Nc3 {[%clk 0:02:00.8]} 16... Bxf3
{[%clk 0:02:30.8]} 17. Qxf3 {[%clk 0:02:01.7]} 17... hxg3 {[%clk 0:02:26.6]} 18.
Bxg3 {[%clk 0:02:00.4]} 18... O-O {[%clk 0:02:21.7]} 19. d5 {[%clk 0:01:56.4]}
19... Nd4 {[%clk 0:02:17.4]} 20. Qd3 {[%clk 0:01:32.3]} 20... Bc5 {[%clk
0:02:09.6]} 21. Kh1 {[%clk 0:01:32.6]} 21... g6 {[%clk 0:01:37.8]} 22. Be5
{[%clk 0:01:27.1]} 22... Nf5 {[%clk 0:01:37.1]} 23. Ne4 {[%clk 0:01:16.6]} 23...
Be7 {[%clk 0:01:23.3]} 24. Qh3 {[%clk 0:01:01.4]} 24... f6 {[%clk 0:01:22.3]}
25. Qg4 {[%clk 0:00:35.8]} 25... fxe5 {[%clk 0:00:57.8]} 26. Qxg6+ {[%clk
0:00:34.7]} 26... Ng7 {[%clk 0:00:58.1]} 27. Rg1 {[%clk 0:00:32.7]} 27... Bd8
{[%clk 0:00:53.5]} 28. Raf1 {[%clk 0:00:25.6]} 28... Rxf1 {[%clk 0:00:52.6]} 29.
Rxf1 {[%clk 0:00:26.5]} 29... Qxd5 {[%clk 0:00:46]} 30. h4 {[%clk 0:00:23]}
30... Bxh4 {[%clk 0:00:40]} 31. Rg1 {[%clk 0:00:22.3]} 31... Qf7 {[%clk
0:00:37.2]} 32. Qg4 {[%clk 0:00:22.1]} 32... Be7 {[%clk 0:00:36.5]} 33. Ng3
{[%clk 0:00:18.8]} 33... Rf8 {[%clk 0:00:24.6]} 34. Rf1 {[%clk 0:00:18.3]} 34...
Qe6 {[%clk 0:00:20.8]} 35. Rxf8+ {[%clk 0:00:15.1]} 35... Bxf8 {[%clk
0:00:21.7]} 36. Qe4 {[%clk 0:00:13.9]} 36... Qe7 {[%clk 0:00:17.9]} 37. Kg2
{[%clk 0:00:13.7]} 37... Qc7 {[%clk 0:00:17.8]} 38. Kh2 {[%clk 0:00:13.6]} 38...
Qc6 {[%clk 0:00:17.4]} 39. Qg4 {[%clk 0:00:13.5]} 39... Qc2+ {[%clk 0:00:16.6]}
40. Kh3 {[%clk 0:00:12.8]} 40... Be7 {[%clk 0:00:11.8]} 41. Qg6 {[%clk
0:00:12.2]} 41... Qxg6 {[%clk 0:00:11.7]} 0-1